Workbook

Sheet стр.1
BE3: "УТВЕРЖДАЮ"
BE4: Заведующий муниципальным бюджетным дошкольным образовательным учреждением детским садом "Улыбка" с. Александров-Гай, Александрово-Гайский район, Саратовской области
BY5: Т.В. Леонова
BE6: (подпись) | BY6: (расшифровка подписи)
BM7: " | BN7: 31 | BR7: " | BU7: декабря | CJ7: 20 | CN7: 19 | CR7: г.
A16: План финансово-хозяйственной деятельности
AB17: на 01 января 2020 г.
BT20: Форма по КФД
Y21: " | Z21: 31 | AD21: " | AG21: декабря | AY21: 20 | BC21: 19 | BG21: г. | BT21: Дата | CF21: 31.12.2019
A24: Наименование | W24: Муниципальное бюджетное дошкольное образовательное учреждение детский сад "Улыбка" с. Александров-Гай, Александрово-Гайский район, Саратовской области | BT24: по ОКПО | CF24: 59392018
A25: муниципального
A26: учреждения
A27: (подразделения)
A29: ИНН/КПП | W29: 6401003264/640101001
A30: Единица измерения: руб. | BT30: по ОКЕИ | CF30: 383
A32: Наименование органа, | AA32: Администрации Александрово-Гайского муниципального района Саратовской области
A33: осуществляющего
A34: функции и полномочия
A35: учредителя
A37: Адрес фактического | AA37: 413371, Саратовская обл, Александрово-Гайский район, с. Новоалександровка , ул. Крайняя 5 "А"
A38: местонахождения
A39: мунципального
A40: учреждения
A41: (подразделения)

Sheet стр.2
A2: I. Основные сведения о деятельности муниципального учреждения
A4: 1.1. Цели деятельности муниципального учреждения:
A5: 1.1.1 Образовательная деятельность по образовательным программам дошкольного образования, присмотр и уход за детьми.
A6: 1.1.2 Создание оптимальных благоприятных условий для полноценного образования и воспитания.
A7: 1.2. Виды деятельности муниципального учреждения :
A8: 1.2.1. Дошкольного образования для детей.
A9: 1.2.2. Осуществление присмотра и ухода за воспитанниками, реализацию общеобразовательной программы дошкольного образования в соответствии с ФГОС.
A10: 1.3. Перечень услуг (работ), относящихся в соответствии с уставом положением подразделения) к основным видам деятельности мунципального учреждения, предоставление которых для физических и юридических лиц осуществляется, в том числе за плату:
A11: 1.3.1. Реализация основных общеобразовательных программ дошкольного образования.
A12: 1.3.2. Присмотр и уход.
A13: 1.4. Общая балансовая стоимость недвижимого муниципального имущества на дату составления Плана - 2 455 334,22 рублей,
A14: 4 | B14: в том числе:
B15: стоимость имущества, закрепленного на праве оперативного управления
I16: 2 455 334,22_ рублей,
A17: стоимость имущества, приобретенного учреждением за счет доходов, полученных от иной приносящей доход деятельности
I18: 0,00 рублей,
A19: 1.5. Общая балансовая стоимость движимого муниципального имущества на дату составления Плана 558 080,97 рублей,
B20: в том числе:
B21: балансовая стоимостьособо ценного движимого имущества | BS21: 138 673,29 рублей

Sheet Таблица 1
C1: Таблица 1
A3: Показатели финансового состояния учреждения (подразделения)
A4: на 01 января 20 20г.
A5: (последнюю отчетную дату)
A8: N п/п | B8: Наименование показателя | C8: Сумма, тыс. руб.
A9: 1 | B9: 2 | C9: 3
B10: Нефинансовые активы, всего: | C10: 3152088.48
B11: из них:
B12: недвижимое имущество, всего: | C12: 2455334.22
B13: в том числе:
B14: остаточная стоимость
B15: особо ценное движимое имущество, всего: | C15: 138673.29
B16: в том числе:
B17: остаточная стоимость | C17: 11624
B18: Финансовые активы, всего: | C18: =C20+C25 -> 78463.57
B19: из них:
B20: денежные средства учреждения, всего | C20: =C22+C23 -> 5572.82
B21: в том числе:
B22: денежные средства учреждения на счетах | C22: 1660
B23: денежные средства учреждения, размещенные на депозиты в кредитной организации | C23: 3912.82
B24: иные финансовые инструменты
B25: дебиторская задолженность по доходам | C25: 72890.75
B26: дебиторская задолженность по расходам
B27: Обязательства, всего: | C27: =C30 -> 135122.82
B28: из них:
B29: долговые обязательства
B30: кредиторская задолженность: | C30: =95409.92+39712.9 -> 135122.82
B31: в том числе:
B32: просроченная кредиторская задолженность | C32: 31926.5

Sheet Таблица 2
K1: Таблица 2
A2: Показатели по поступлениям и выплатам учреждения (подразделения) на | G2: 20___ г.
A4: Наименование показателя | B4: Код строки | C4: КБК РФ | D4: Объем финансового обеспечения, руб. (с точностью до двух знаков после запятой - 0,00)
D5: всего | E5: в том числе:
E6: субсидии на финансовое обеспечение выполнения муниципального задания из местного бюджета | F6: субсидии на финансовое обеспечение выполнения государственного задания из бюджета Федерального фонда обязательного медицинского страхования | G6: субсидии, предоставляемые в соответствии с абзацем вторым пункта 1 статьи 78.1 Бюджетного кодекса Российской Федерации | H6: субсидии на осуществление капитальных вложений | I6: средства обязательного медицинского страхования | J6: поступления от оказания услуг (выполнения работ) на платной основе и от иной приносящей доход деятельности
J7: всего | K7: из них гранты
A8: 1 | B8: 2 | C8: 3 | D8: 4 | E8: 5 | F8: 5.1 | G8: 6 | H8: 7 | I8: 8 | J8: 9 | K8: 10
A9: Поступления от доходов, всего: | B9: 100 | C9: X | D9: =D10+D12+D13+D15 -> 6452290.96 | E9: =E12 -> 4255269 | F9: =F10+F12+F13 -> 0 | G9: =G15 -> 1869096.96 | H9: =H15 -> 0 | I9: =I10+I12+I13 -> 0 | J9: =J12 -> 327925
A10: в том числе: | B10: 110 | E10: X | G10: X | H10: X | K10: X
A11: доходы от собственности
A12: доходы от оказания услуг, работ | B12: 120 | C12: 130 | D12: =E12+J12 -> 4583194 | E12: ='Таблица 2.2'!H10 -> 4255269 | F12: 0 | G12: X | H12: X | J12: ='Таблица 2.2'!H14 -> 327925
A13: доходы от штрафов, пеней, иных сумм принудительного изъятия | B13: 130 | E13: X | G13: X | H13: X | K13: X
A14: безвозмездные поступления от наднациональных организаций, правительств иностранных государств, международных финансовых организаций | B14: 140 | E14: X | G14: X | H14: X | K14: X
A15: иные субсидии, предоставленные из бюджета | B15: 150 | C15: 180 | D15: =G15 -> 1869096.96 | E15: X | G15: ='Таблица 2.2'!H92 -> 1869096.96 | H15: =H28 -> 0 | J15: X | K15: X
A16: прочие доходы | B16: 160 | E16: X | G16: X | H16: X
A17: доходы от операций с активами | B17: 180 | C17: X | E17: X | G17: X | H17: X | K17: X
A18: Выплаты по расходам, всего: | B18: 200 | C18: X | D18: =E18+G18+J18 -> 6452290.96 | E18: =E19+E24+E28 -> 4255269 | G18: =G24+G28+G19 -> 1869096.96 | H18: =H28 -> 0 | J18: =J28 -> 327925
A19: в том числе на: выплаты персоналу всего: | B19: 210 | C19: 110 | D19: =E19+G19 -> 4008050.96 | E19: ='Таблица 2.2'!H20 -> 3788954 | G19: =G20 -> 219096.96
A20: из них: | B20: 211 | C20: 110 | D20: =E20+G20 -> 4008050.96 | E20: ='Таблица 2.2'!H20 -> 3788954 | G20: ='Таблица 2.2'!H94+'Таблица 2.2'!H95+'Таблица 2.2'!H96+'Таблица 2.2'!H97+'Таблица 2.2'!H108+'Таблица 2.2'!H116+'Таблица 2.2'!D101 -> 219096.96
A21: оплата труда и начисления на выплаты по оплате труда
A22: социальные и иные выплаты населению, всего | B22: 220
A23: из них:
A24: уплату налогов, сборов и иных платежей, всего | B24: 230 | C24: 850 | D24: =E24+G24 -> 14000 | E24: ='Таблица 2.2'!H53 -> 14000 | G24: ='Таблица 2.2'!D103 -> 0
A25: из них:
A26: безвозмездные перечисления организациям | B26: 240
A27: прочие расходы (кроме расходов на закупку товаров, работ, услуг) | B27: 250
A28: расходы на закупку товаров, работ, услуг, всего | B28: 260 | C28: X | D28: =E28+G28+J28 -> 2430240 | E28: ='Таблица 2.2'!H31 -> 452315 | G28: ='Таблица 2.2'!D104+'Таблица 2.2'!D105+'Таблица 2.2'!D109+'Таблица 2.2'!H118+'Таблица 2.2'!H111+'Таблица 2.2'!H112+'Таблица 2.2'!H119 -> 1650000 | J28: ='Таблица 2.2'!H14 -> 327925
A29: Поступление финансовых активов, всего: | B29: 300 | C29: X
A30: из них: | B30: 310
A31: увеличение остатков средств
A32: прочие поступления | B32: 320
A33: Выбытие финансовых активов, всего | B33: 400
A34: из них: | B34: 410
A35: уменьшение остатков средств
A36: прочие выбытия | B36: 420
A37: Остаток средств на начало года | B37: 500 | C37: X
A38: Остаток средств на конец года | B38: 600 | C38: X

Sheet Таблица 2.1
K1: Таблица 2.1
A2: Показатели выплат по расходам на закупку товаров, работ, услуг учреждения (подразделения)
A3: на 01 января 2020 г.
A6: Наименование показателя | B6: Код строки | C6: Год начала закупки | D6: Сумма выплат по расходам на закупку товаров, работ и услуг, руб. (с точностью до двух знаков после запятой - 0,00
D7: всего на закупки | G7: в том числе:
G8: в соответствии с Федеральным законом от 5 апреля 2013 г. N 44-ФЗ "О контрактной системе в сфере закупок товаров, работ, услуг для обеспечения государственных и муниципальных нужд" | J8: в соответствии с Федеральным законом от 18 июля 2011 г. N 223-ФЗ "О закупках товаров, работ, услуг отдельными видами юридических лиц"
D9: на 2019г. очередной финансовый год | E9: на 20__ г. 1-ый год планового периода | F9: на 20__ г. 2-ой год планового периода | G9: на 20 17 г. очередной финансовый год | H9: на 20__ г. 1-ый год планового периода | I9: на 20__ г. 2-ой год планового периода | J9: на 20__ г. очередной финансовый год | K9: на 20__ г. 1-ый год планового периода | L9: на 20__ г. 1-ый год планового периода
A10: 1 | B10: 2 | C10: 3 | D10: 4 | E10: 5 | F10: 6 | G10: 7 | H10: 8 | I10: 9 | J10: 10 | K10: 11 | L10: 12
A11: Выплаты по расходам на закупку товаров, работ, услуг всего: | B11: 1 | C11: X | D11: =D12+D14 -> 2430240 | G11: =G12+G14 -> 2430240
A12: в том числе: на оплату контрактов заключенных до начала очередного финансового года: | B12: 1001 | C12: X | D12: =D13 -> 0 | G12: =G13 -> 0
C13: 2019 | D13: ='Таблица 2.2'!D104+'Таблица 2.2'!D105+'Таблица 2.2'!D109+'Таблица 2.2'!H111+'Таблица 2.2'!H112 -> 0 | G13: =D13 -> 0
A14: на закупку товаров работ, услуг по году начала закупки: | B14: 2001 | D14: =D15 -> 2430240 | G14: =G15 -> 2430240
C15: 2020 | D15: ='Таблица 2.2'!H31+'Таблица 2.2'!H69+'Таблица 2.2'!D98+'Таблица 2.2'!H118+'Таблица 2.2'!H119 -> 2430240 | G15: =D15 -> 2430240

Sheet Таблица 2.2
G1: Таблица 2.2
A3: Показатели по поступлениям и выплатам бюджетного учреждения (подразделения), детализировано
H4: Улыбка
A5: № п\п | B5: Наименование показателя | C5: Код бюджетной классификации | D5: Очередной финансовый год
D6: I кв. | E6: II кв. | F6: III кв. | G6: IV кв. | H6: Всего
A7: 1. | B7: Остаток средств на начало планируемого года | C7: Х | D7: 0 | H7: =SUM(D7:G7) -> 0
A8: 2. | B8: Поступления, всего: | C8: Х | D8: =SUM(D10:D14) -> 3288190.24 | E8: =SUM(E10:E14) -> 1936760.24 | F8: =SUM(F10:F14) -> 1056738.24 | G8: =SUM(G10:G14) -> 170602.24 | H8: =SUM(D8:G8) -> 6452290.96
A9: в том числе:
A10: 2.1. | B10: Субсидии на выполнении муниципального задания, в том числе: | D10: =D18 -> 1501434 | E10: =E18 -> 1800004 | F10: =F18 -> 919982 | G10: =G18 -> 33849 | H10: 4255269
A11: 2.2. | B11: Субсидии на иные цели | D11: =D92 -> 1704775.24 | E11: =E92 -> 54775.24 | F11: 54775.24 | G11: 54771.24 | H11: 1869096.96
A12: 2.3. | B12: Бюджетные инвестиции | H12: 0
A13: 2.4. | B13: Поступления от оказания бюджетным учреждением услуг (выполнение работ), предоставление которых для физических и юридических лиц осуществляется на платной основе | H13: 0
A14: 2.5. | B14: Поступления от иной приносящей доход деятельности, всего: | D14: =D16+D17 -> 81981 | E14: =E16+E17 -> 81981 | F14: =F16+F17 -> 81981 | G14: =G16+G17 -> 81982 | H14: 327925
A15: в том числе:
A16: 2.5.1. | B16: от сдачи имущества в аренду | H16: 0
A17: 2.5.2. | B17: иные поступления | D17: =D62 -> 81981 | E17: =E62 -> 81981 | F17: =F62 -> 81981 | G17: =G62 -> 81982 | H17: 327925
A18: 3. | B18: Выплаты за счет субсидии на финансовое обеспечение выполнения муниципального задания из местного бюджета, всего: | C18: Х | D18: =D20+D31+D50+D53 -> 1501434 | E18: =E20+E31+E50+E53 -> 1800004 | F18: =F20+F31+F50+F53 -> 919982 | G18: =G20+G31+G50+G53 -> 33849 | H18: 4255269
A19: в том числе:
A20: 3.1. | B20: Расходы на выплаты персоналу в целях обеспечения выполнения функций государственными (муниципальными) органами, казенными учреждениями, органами управления государственными внебюджетными фондами, всего | C20: 100 | D20: =SUM(D22:D29) -> 1217370 | E20: =SUM(E22:E29) -> 1692600 | F20: =SUM(F22:F30) -> 878984 | G20: =SUM(G22:G29) -> 0 | H20: 3788954
A21: из них:
A22: 3.1.1. | B22: Заработная плата | C22: 075;0701;69 1 01 07300;111 (211) | D22: =270000 -> 270000 | E22: =375000 -> 375000 | F22: =167000 -> 167000 | H22: 812000
A23: 3.1.1. | B23: Заработная плата | C23: 075;0701;69 1 01 07300;111 (266) | D23: =10000 -> 10000 | H23: 10000
A24: 3.1.1. | B24: Заработная плата | C24: 075;0701;69 1 01 76700;111 (211) | D24: =635000 -> 635000 | E24: =925000 -> 925000 | F24: =525000 -> 525000 | H24: =SUM(D24:G24) -> 2085000
A25: 3.1.1. | B25: Заработная плата | C25: 075;0701;69 1 01 76700;111 (266) | D25: =20000 -> 20000 | H25: =SUM(D25:G25) -> 20000
A26: 3.1.1. | B26: Заработная плата | C26: 075;0701;69 1 01 72200;111 (211) | H26: =SUM(D26:G26) -> 0
A27: 3.1.2. | B27: Прочие выплаты | C27: 075;0701;69 1 01 07300;112 (212) | H27: 0
A28: 3.1.3. | B28: Начисления на выплаты по оплате труда | C28: 075;0701;69 1 01 07300;119 (213) | D28: =84560 -> 84560 | E28: =113250 -> 113250 | F28: =28434 -> 28434 | H28: =SUM(D28:G28) -> 226244
A29: 3.1.3. | B29: Начисления на выплаты по оплате труда | C29: 075;0701;69 1 01 76700;119 (213) | D29: =197810 -> 197810 | E29: =279350 -> 279350 | F29: =158550 -> 158550 | H29: =SUM(D29:G29) -> 635710
A30: 3.1.3. | B30: Начисления на выплаты по оплате труда | C30: 075;0701;69 1 01 72200;111 (213) | H30: =SUM(D30:G30) -> 0
A31: 3.2. | B31: Закупка товаров, работ и услуг для обеспечения государственных (муниципальных) нужд, всего | C31: 200 | D31: =SUM(D33:D49) -> 274064 | E31: =SUM(E33:E49) -> 107404 | F31: =SUM(F33:F49) -> 36998 | G31: =SUM(G33:G49) -> 33849 | H31: =SUM(D31:G31) -> 452315
A32: из них:
A33: 3.2.1. | B33: Услуги связи | C33: 075;0701;69 1 01 07300;244 (221) | D33: =2500 -> 2500 | E33: =2500 -> 2500 | F33: =2500 -> 2500 | G33: =2500 -> 2500 | H33: 10000
A34: 3.2.2. | B34: Транспортные услуги | C34: 075;0701;69 1 01 07300;244 (222) | H34: 0
A35: 3.2.3. | B35: Коммунальные услуги | C35: 075;0701;69 1 01 07300;244 (223) | D35: =174375 -> 174375 | E35: =69750 -> 69750 | F35: =10000 -> 10000 | H35: 254125
A36: 3.2.3. | B36: Коммунальные услуги обл | C36: 075;0701;69 1 01 72200;244 (223) | H36: =SUM(D36:G36) -> 0
A37: 3.2.4. | B37: Арендная плата за пользование имуществом | C37: 075;0701;69 1 01 07300;244 (224) | H37: 0
A38: 3.2.5. | B38: Работы, услуги по содержанию имущества | C38: 075;0701;69 1 01 07300;244 (225) | D38: =40000 -> 40000 | E38: =10000 -> 10000 | F38: =5500 -> 5500 | G38: =5500 -> 5500 | H38: 61000
A39: 3.2.6. | B39: Прочие работы, услуги | C39: 075;0701;69 1 01 07300;244 (226) | D39: =3400 -> 3400 | E39: =3400 -> 3400 | F39: =3400 -> 3400 | G39: =3400 -> 3400 | H39: 13600
A40: 3.2.7. | B40: Прочие расходы | C40: 075;0701;69 1 01 07300;244 (290) | H40: 0
A41: 3.2.8. | B41: Увеличение стоимости основных средств | C41: 075;0701;69 1 01 07300;244 (310) | D41: =5000 -> 5000 | H41: =SUM(D41:G41) -> 5000
A42: 3.2.8. | B42: Увеличение стоимости основных средств | C42: 075;0701;69 1 01 76700;244 (310) | D42: =21000 -> 21000 | H42: =SUM(D42:G42) -> 21000
A43: 3.2.9. | B43: Увеличение стоимости материальных запасов | C43: 075;0701;69 1 01 07300;244 (346) | D43: =3500 -> 3500 | H43: =SUM(D43:G43) -> 3500
A44: 3.2.9. | B44: Увеличение стоимости материальных запасов | C44: 075;0701;69 1 01 07300;244 (342) | D44: =7935 -> 7935 | H44: 7935
A45: 3.2.9. | B45: Увеличение стоимости материальных запасов | C45: 075;0701;69 1 01 07300;244 (341) | D45: =330 -> 330 | H45: =SUM(D45:G45) -> 330
A46: 3.2.9. | B46: Увеличение стоимости материальных запасов | C46: 075;0701;69 1 01 07300;244 (345) | D46: =4200 -> 4200 | H46: 4200
A47: 3.2.9. | B47: Увеличение стоимости материальных запасов | C47: 075;0701;69 10 1 76900;244 (342) | D47: =7224 -> 7224 | E47: =21754 -> 21754 | F47: =15598 -> 15598 | G47: =22449 -> 22449 | H47: 67025
A48: 3.2.9. | B48: Увеличение стоимости материальных запасов | C48: 075;0701;69 10 1 76900;244 (341) | D48: =600 -> 600 | H48: 600
A49: 3.2.9. | B49: Увеличение стоимости материальных запасов | C49: 075;0701;69 10 1 76900;244 (345) | D49: =4000 -> 4000 | H49: 4000
A50: 3.3. | B50: Социальное обеспечение и иные выплаты населению, всего: | C50: 300 | D50: =D52 -> 0 | E50: =E52 -> 0 | F50: =F52 -> 0 | G50: =G52 -> 0 | H50: 0
A51: из них:
A52: 3.3.1. | B52: Пособия по социальной помощи населению | H52: 0
A53: 3.4. | B53: Иные бюджетные ассигнования, всего: | C53: 800 | D53: =SUM(D55:D58) -> 10000 | E53: =SUM(E55:E61) -> 0 | F53: =SUM(F55:F61) -> 4000 | G53: =SUM(G55:G61) -> 0 | H53: 14000
A54: из них:
A55: 3.4.1. | B55: Уплата налога на имущество организаций и земельного налога | C55: 075;0701;69 1 01 07300;851 (291) | F55: =1000 -> 1000 | H55: 1000
C56: 075;0701;69 1 01 72200;851 (291) | H56: =SUM(D56:G56) -> 0
A57: 3.4.2. | B57: Уплата прочих налогов, сборов | C57: 075;0701;69 1 01 07300;852 (292) | H57: 0
A58: 3.4.3. | B58: Уплата иных платежей | C58: 075;0701;69 1 01 07300;853(293) | D58: =10000 -> 10000 | H58: 10000
A59: 3.4.3. | B59: Уплата иных платежей | C59: 075;0701;69 1 01 07300;853(297) | H59: 0
A60: 3.4.4. | B60: Уплата иных платежей | C60: 075;0701;69 1 01 07300;831 (297) | H60: 0
A61: 3.4.5. | B61: Уплата налога на имущество организаций и земельного налога | C61: 075;0701;69 1 01 07300;851 (294) | F61: =3000 -> 3000 | H61: =SUM(D61:G61) -> 3000
A62: 4. | B62: Выплаты за счет поступлений от оказания услуг (выполнения работ) на платной основе и от иной приносящей доход деятельности, всего: | C62: Х | D62: =D64+D69+D83 -> 81981 | E62: =E64+E69+E83 -> 81981 | F62: =F64+F69+F83 -> 81981 | G62: =G64+G69+G83 -> 81982 | H62: 327925
A63: в том числе:
A64: 4.1. | B64: Расходы на выплаты персоналу в целях обеспечения выполнения функций государственными (муниципальными) органами, казенными учреждениями, органами управления государственными внебюджетными фондами, всего | C64: 100 | D64: =SUM(D66:D68) -> 0 | E64: =SUM(E66:E68) -> 0 | F64: =SUM(F66:F68) -> 0 | G64: =SUM(G66:G68) -> 0 | H64: =SUM(D64:G64) -> 0
A65: из них:
A66: 4.1.1. | B66: Заработная плата | H66: =SUM(D66:G66) -> 0
A67: 4.1.2. | B67: Прочие выплаты | H67: =SUM(D67:G67) -> 0
A68: 4.1.3. | B68: Начисления на выплаты по оплате труда | H68: =SUM(D68:G68) -> 0
A69: 4.2. | B69: Закупка товаров, работ и услуг для обеспечения государственных (муниципальных) нужд, всего | C69: 200 | D69: =SUM(D71:D82) -> 81981 | E69: =SUM(E71:E82) -> 81981 | F69: =SUM(F71:F82) -> 81981 | G69: =SUM(G71:G82) -> 81982 | H69: =SUM(D69:G69) -> 327925
A70: из них:
A71: 4.2.1. | B71: Услуги связи | C71: 075;0701;00 0 00 00000 244 (221) | H71: =SUM(D71:G71) -> 0
A72: 4.2.2. | B72: Транспортные услуги | C72: 075;0701;00 0 00 00000 244 (222) | H72: 0
A73: 4.2.3. | B73: Коммунальные услуги | C73: 075;0701;00 0 00 00000 244 (223) | H73: 0
A74: 4.2.4. | B74: Арендная плата за пользование имуществом | C74: 075;0701;00 0 00 00000 244 (224) | H74: 0
A75: 4.2.5. | B75: Работы, услуги по содержанию имущества | C75: 075;0701;00 0 00 00000 244 (225) | H75: 0
A76: 4.2.6. | B76: Прочие работы, услуги | C76: 075;0701;00 0 00 00000 244 (226) | H76: 0
A77: 4.2.7. | B77: Прочие расходы | C77: 075;0701;00 0 00 00000 244 (290) | H77: 0
A78: 4.2.8. | B78: Увеличение стоимости основных средств | C78: 075;0701;00 0 00 00000 244 (310) | H78: 0
A79: 4.2.9. | B79: Увеличение стоимости материальных запасов | C79: 075;0701;00 0 00 00000 244 (341) | H79: 0
A80: 4.2.10. | B80: Увеличение стоимости материальных запасов | C80: 075;0701;00 0 00 00000 244 (342) | D80: =81981 -> 81981 | E80: =81981 -> 81981 | F80: =81981 -> 81981 | G80: =81982 -> 81982 | H80: =SUM(D80:G80) -> 327925
A81: 4.2.11. | B81: Увеличение стоимости материальных запасов | C81: 075;0701;00 0 00 00000 244 (344) | H81: =SUM(D81:G81) -> 0
A82: 4.2.12. | B82: Увеличение стоимости материальных запасов | C82: 075;0701;00 0 00 00000 244 (346) | H82: 0
A83: 4.3. | B83: Иные бюджетные ассигнования, всего: | C83: 800 | D83: =SUM(D85:D87) -> 0 | E83: =SUM(E85:E87) -> 0 | F83: =SUM(F85:F87) -> 0 | G83: =SUM(G85:G87) -> 0 | H83: =SUM(D83:G83) -> 0
A84: из них:
A85: 4.3.1. | B85: Уплата налога на имущество организаций и земельного налога | H85: =SUM(D85:G85) -> 0
A86: 4.3.2. | B86: Уплата прочих налогов, сборов | H86: =SUM(D86:G86) -> 0
A87: 4.3.3. | B87: Уплата иных платежей | H87: =SUM(D87:G87) -> 0
A88: 5. | B88: Выплаты за счет поступлений на осуществление бюджетных инвестиций, всего | C88: Х | D88: =SUM(D90:D91) -> 0 | E88: =SUM(E90:E91) -> 0 | F88: =SUM(F90:F91) -> 0 | G88: =SUM(G90:G91) -> 0 | H88: =SUM(D88:G88) -> 0
A89: в том числе:
H90: 0
H91: 0
A92: 6. | B92: Выплаты за счет субсидии на иные цели, всего | C92: Х | D92: =SUM(D94:D119) -> 1704775.24 | E92: =SUM(E94:E119) -> 54775.24 | F92: 54775.24 | G92: 54771.24 | H92: 1869096.96
A93: в том числе:
A94: 6.1 | B94: Заработная плата (софинансирование) | C94: 075;0701;37 1 01 S2300;111 (211) | D94: =422 -> 422 | E94: =422 -> 422 | F94: =422 -> 422 | G94: =419 -> 419 | H94: =SUM(D94:G94) -> 1685
A95: 6.2 | B95: Начисления на выплаты по оплате труда (софинансирование) | C95: 075;0701;37 1 01 S2300;119 (213) | D95: =127.44 -> 127.44 | E95: =127.44 -> 127.44 | F95: =127.44 -> 127.44 | G95: 126.44 | H95: =SUM(D95:G95) -> 508.76
A96: 6.3 | B96: Заработная плата (область) | C96: 075;0701;37 1 01 72300;111 (211) | D96: =41648 -> 41648 | E96: =41648 -> 41648 | F96: =41648 -> 41648 | G96: =41648 -> 41648 | H96: 166592
A97: 6.4 | B97: Начисления на выплаты по оплате труда (область)) | C97: 075;0701;37 1 01 72300;119 (213) | D97: =12577.8 -> 12577.8 | E97: =12577.8 -> 12577.8 | F97: =12577.8 -> 12577.8 | G97: =12577.8 -> 12577.8 | H97: 50311.2
A98: 6.5 | B98: Увеличение стоимости основных средств | C98: 075;0701;78 1 01 17300;241 (310) | H98: 0
A99: 6.6 | B99: Заработная плата (область) | C99: 075;0701;69 1 07 79200;111 (211) | H99: 0
A100: 6.7 | B100: Начисления на выплаты по оплате труда (область) | C100: 075;0701;69 1 07 79200;119 (213) | H100: 0
A101: 6.8 | B101: Начисления на выплаты по оплате труда (кредиторка) | C101: 075;0701;69 1 03 72400;241 (213) | H101: 0
A102: 6.9 | B102: Уплата налога на имущество организаций и земельного налога (кредиторка) | C102: 075;0701;69 1 03 72400;851 (291) | H102: 0
A103: 6.10 | B103: Уплата иных платежей (кредиторка) | C103: 075;0701;69 1 03 72400;853 (293) | H103: 0
A104: 6.11 | B104: Работы, услуги по содержанию имущества (кредиторка) | C104: 075;0701;69 1 03 72400;244 (225) | H104: 0
A105: 6.12 | B105: Прочие работы, услуги (кредиторка) | C105: 075;0701;69 1 03 72400;244 (226) | H105: 0
A106: 6.13 | B106: Заработная плата (область) | C106: 075;0701;69 1 07 78А00;111 211 | H106: 0
A107: 6.14 | B107: Начисления на выплаты по оплате труда (область) | C107: 075;0701;69 1 07 78А00;119 213 | H107: 0
A108: 6.15 | B108: Начисления на выплаты по оплате труда (кредиторка) | C108: 075;0701;69 1 03 073Г0;119 (213) | H108: =SUM(D108:G108) -> 0
A109: 6.16 | B109: Услуги связи (кредиторка) | C109: 075;0701;69 1 03 073Г0;244 (221) | H109: =SUM(D109:G109) -> 0
A110: 6.17 | B110: Коммунальные услуги (кредиторка) | C110: 075;0701;69 1 03 073Г0;244 (223) | H110: =SUM(D110:G110) -> 0
A111: 6.18 | B111: Работы, услуги по содержанию имущества (кредиторка) | C111: 075;0701;69 1 03 073Г0;244 (225) | H111: 0
A112: 6.19 | B112: Прочие работы, услуги(кредиторка) | C112: 075;0701;69 1 03 073Г0;244 (226) | H112: 0
A113: 6.20 | B113: Уплата налога на имущество организаций и земельного налога (кредиторка) | C113: 075;0701;69 1 03 073Г0;851 (291) | H113: 0
A114: 6.21 | B114: Уплата иных платежей (кредиторка) | C114: 075;0701;69 1 01 073Г0;853 (297) | H114: 0
A115: 6.22 | B115: Увеличение стоимости материальных запасов (кредиторка) | C115: 075;0701;69 1 03 073Г0;851 (342) | H115: 0
A116: 6.23 | B116: Начисления на выплаты по оплате труда | C116: 075;0701;69 1 03 72200;119 (213) | H116: 0
A117: 6.24 | B117: Уплата иных платежей(кредиторка) | C117: 075;0701;69 1 03 073Г0;853 (293) | H117: =SUM(D117:G117) -> 0
A118: 6.25 | B118: Приобретение бойлера | C118: 075;0701;76 1 04 79200;244 310 | H118: 0
A119: 6.26 | C119: 075;0701;76 1 02 79Б00;244 (226) | D119: =1650000 -> 1650000 | H119: 1650000
A120: 7. | B120: Остаток средств на конец планируемого года | C120: Х | D120: =SUM(D122:D124) -> 0 | E120: =SUM(E122:E124) -> 0 | F120: =SUM(F122:F124) -> 0 | G120: =SUM(G122:G124) -> 0 | H120: 0
A121: в том числе:
A122: 7.1. | B122: остаток субсидии на выполнение муниципального задания | H122: 0
A123: 7.2. | B123: остаток целевой субсидии | H123: 0
A124: 7.3. | B124: остаток средств от оказания услуг (выполнения работ) на платной основе и от иной приносящей доход деятельности | H124: 0

Sheet Таблица 3
C4: Таблица 3
A6: Сведения о средствах, поступающих
A7: во временное распоряжение учреждения (подразделения)
A8: на 01 января 20 20 г.
A9: (очередной финансовый год)
A11: Наименование показателя | B11: Код строки | C11: Сумма (руб., с точностью до двух знаков после запятой - 0,00)
A12: 1 | B12: 2 | C12: 3
A13: Остаток средств на начало года | B13: 10 | C13: 0
A14: Остаток средств на конец года | B14: 20 | C14: 0
A15: Поступление | B15: 30 | C15: 0
A17: Выбытие | B17: 40 | C17: 0

Sheet Таблица 4
C1: Таблица 4
A3: Справочная информация
A6: Наименование показателя | B6: Код строки | C6: Сумма (тыс. руб.)
A7: 1 | B7: 2 | C7: 3
A8: Объем публичных обязательств, всего: | B8: 10 | C8: 0
A9: Объем бюджетных инвестиций (в части переданных полномочий государственного (муниципального) заказчика в соответствии с Бюджетным кодексом Российской Федерации), всего: | B9: 20 | C9: 0
A10: Объем средств, поступивших во временное распоряжение, всего: | B10: 30 | C10: 0
A13: Руководитель
A14: финансово-экономической службы Г.В Колина
A16: Ответственный исполнитель Е. С. Полянина
A19: " 31" декабря 2019г.

Sheet расчеты мун.задание
C1: Расчеты (обоснования) к плану финансово-хозяйственной деятельности муниципального бюдженого учреждения по состоянию на 01.01.2020г.
D6: 1. Расчеты (обоснования) выплат персоналу (строка 210)
D9: Код вида расходов_111, 112, 119_
C11: Источник финансового обеспечения______Субсидии на выполнение муниципального задания________________________________
A14: 1.1 Расчеты (обоснования) расходов на оплату труда
A16: № п/п | B16: Должность, группа должностей | C16: Установленная численность, единиц | D16: Среднемесячный размер оплаты труда на одного работника, руб. | H16: Ежемесячная надбавка к должностному окладу, % | I16: Районный коэффициент | J16: 4% и доведение до МРОТ | K16: Фонд оплаты труда в год, руб. (гр.3*гр.4*(1+гр.8/100)+гр.10*гр.9)*12
D17: всего | E17: в том числе:
E18: по должностному окладу | F18: по выплатам компенсационного характера | G18: по выплатам стимулирующего характера
A19: 1 | B19: 2 | C19: 3 | D19: 4 | E19: 5 | F19: 6 | G19: 7 | H19: 8 | I19: 9 | J19: 10 | K19: 11
A20: 1 | B20: административно-управленческий персонал | C20: 1 | D20: 25509.92 | E20: 17105 | F20: 0 | G20: 4224.39 | H20: 0 | I20: 1.15 | J20: 981.15 | K20: 306119.04
A21: 2 | B21: педагогический персонал | C21: 4.8 | D21: 20752.9 | E21: 12095 | F21: 438.75 | G21: 2258.31 | H21: 0 | I21: 1.15 | J21: 0 | K21: 1195367.04
A22: 3 | B22: учебно-вспомогательный персонал | C22: 3 | D22: 13949.5 | E22: 7926 | F22: 951.12 | G22: 511.65 | H22: 0 | I22: 1.15 | J22: 3152.42 | K22: 502182
A23: 4 | B23: обслуживающий персонал | C23: 7.15 | D23: 12475.4 | E23: 7919 | F23: 1073.4 | G23: 1339.6 | H23: 0 | I23: 1.15 | J23: 594.1 | K23: 1070389.32
A24: Итого: | C24: =SUM(C20:C23) -> 15.95 | E24: х | F24: х | G24: х | H24: х | I24: х | J24: х | K24: =SUM(K20:K23) -> 3074057.4
C27: 1.2 Расчеты (обоснования) выплат персоналу при направлении в служебные командировки
A29: № п/п | B29: Наименование расходов | C29: Средний размер выплаты на одного работника в день, руб. | E29: Количество работников, чел. | F29: Количество дней | G29: Сумма, руб. (гр.3*гр.4*гр.5)
A32: 1 | B32: 2 | C32: 3 | E32: 4 | F32: 5 | G32: 6
G33: =C33*D33*E33 -> 0
A34: Итого: | C34: х | E34: х | F34: х | G34: =SUM(G33) -> 0
C37: 1.3 Расчеты (обоснования) выплат персоналу по уходу за ребенком
A39: № п/п | B39: Наименование расходов | C39: Численность работников, получающих пособие | E39: Количество выплат в год на одного работника | F39: Размер выплаты (пособия) в месяц, руб. | G39: Сумма, руб. (гр.3*гр.4*гр.5)
A42: 1 | B42: 2 | C42: 3 | E42: 4 | F42: 5 | G42: 6
G43: =C43*D43*E43 -> 0
A44: Итого: | C44: х | E44: х | F44: х | G44: =SUM(G43) -> 0
B47: 1.4 Расчеты (обоснования) страховых взносов на обязательное страхование в Пенсионный фонд Российской Федерации, в Фондсоциального страхования Российской Федерации, в Федеральный фонд обязательного медицинского страхования
A49: № п/п | B49: Наименование государственного внебюджетного фонда | E49: Размер базы для начисления страховых взносов, руб. | G49: Сумма взноса, руб.
A52: 1 | B52: 2 | E52: 3 | G52: 4
A53: 1 | B53: Страховые взносы в Пенсионный фонд Российской Федерации, всего | E53: х | G53: =SUM(G55+G59+G61) -> 676292.63
A55: 1.1 | B55: в том числе: | G55: 676292.63
B57: по ставке 22,0%
A59: 1.2 | B59: по ставке 10,0% | G59: 0
A61: 1.3 | B61: с применением пониженных тарифов взносов в Пенсионный фонд Российской Федерации для отдельных категорий плательщиков | G61: 0
A63: 2 | B63: Страховые взносы в Фонд социального страхования Российской Федерации, всего | E63: х | G63: =G65+G73+G75 -> 95295.77
A65: 2.1 | B65: в том числе: | G65: 89147.66
B67: обязательное социальное страхование на случай временной нерудоспособности и в связи с материнством по ставке 2,9%
A69: 2.2 | B69: с применением ставки взносов в Фонд социального страхования Российской федерации по ставке 0,0% | E69: х | G69: 0
A71: 1 | B71: 2 | E71: 3 | G71: 4
A73: 2.4 | B73: обязательное социальное страхование от несчастных случаев на производстве и профессиональных заболваний по ставке 0,2%* | G73: 6148.11
A75: 2.5 | B75: обязательное социальное страхование от несчастных случаев на производстве и профессиональных заболваний по ставке 0,__%* | G75: 0
A77: 3 | B77: Страховые взносы в Федеральный фонд обязательного медицинского страхования, всего (по ставке 5,1%) | G77: 156776.93
B79: Итого: | E79: х | G79: =G55+G65+G73+G77 -> 928365.33
B83: 2. Расчеты (обоснования) расходов на социальные и иные выплаты населению
A85: Код вида доходов______________________________________________
B86: Источник финансового обеспечения___________________________________
A88: № п/п | B88: Наименование расходов | C88: Размер одной выплаты, руб. | E88: Количество выплат в год | F88: Сумма, руб. (гр.3*гр.4)
A91: 1 | B91: 2 | C91: 3 | E91: 4 | F91: 5
F92: =C92*E92 -> 0
A93: Итого: | C93: х | E93: х | F93: =SUM(F92) -> 0
A96: __________________________________
A97: * Указываются страховые тарифы, дифференцированные по классам профессионального риска, установленные Федеральным законом от 22 декабря 2005 г. № 179-ФЗ "О страховых тарифах на обязательное социальное страхование от несчастных случаев на производстве и прфессиональных заболеваний на 2006 год".
B103: 3. Расчеты (обоснования) расходов на уплату налогов, сборов и иных платежей
A105: Код вида доходов 851,852______________________________________________
B106: Источник финансового обеспечения___________________________________
A108: № п/п | B108: Наименование расходов | C108: Налоговая база, руб. | E108: Ставка налога, % | F108: Сумма исчисленного налога, подлежащего уплате, руб. (гр.3*гр.4/100)
A111: 1 | B111: 2 | C111: 3 | E111: 4 | F111: 5
A112: 1 | B112: налог на имущество | F112: ='Таблица 2.2'!H55 -> 1000
A113: 2 | B113: земельный налог | F113: ='Таблица 2.2'!H61 -> 3000
A114: Итого: | E114: х | F114: =SUM(F112:G113) -> 4000
A117: 4. Расчеты (обоснования) расходов на безвозмездные перечисления организациям
A119: Код вида доходов ______________________________________________
B120: Источник финансового обеспечения___________________________________
A122: № п/п | B122: Наименование показателя | C122: Размер одной выплаты, руб. | E122: Количество выплат в год | F122: Общая сумма выплат, руб. (гр.3*гр.4)
A125: 1 | B125: 2 | C125: 3 | E125: 4 | F125: 5
F126: =C126*E126 -> 0
A127: Итого: | C127: х | E127: х | F127: =SUM(F126) -> 0
A130: 5. Расчет (обоснование) прочих расхоов (кроме расходов на закупку товаров, работ, услуг)
A132: Код вида доходов ___853___________________________________________
B133: Источник финансового обеспечения___________________________________
A135: № п/п | B135: Наименование показателя | C135: Размер одной выплаты, руб. | E135: Количество выплат в год | F135: Общая сумма выплат, руб. (гр.3*гр.4)
A138: 1 | B138: 2 | C138: 3 | E138: 4 | F138: 5
A139: 1 | B139: пени | F139: ='Таблица 2.2'!H58 -> 10000
A140: Итого: | C140: х | E140: х | F140: =SUM(F139) -> 10000
A143: 6. Расчет (обоснование) расходов на закупку товаров, работ, услуг
A145: Код вида доходов ___244___________________________________________
B146: Источник финансового обеспечения___________________________________
B148: 6.1 Расчет (обоснование) расходов на оплату услуг связи
A149: № п/п | B149: Наименование расходов | C149: Количество номеров | E149: Количество платежей в год | F149: Стоимость за единицу, руб. | G149: Сумма, руб. (гр.3*гр.4*гр.5)
A152: 1 | B152: 2 | C152: 3 | E152: 4 | F152: 5 | G152: 6
A153: 1 | B153: услуги связи | G153: ='Таблица 2.2'!H33 -> 10000
A154: Итого: | C154: х | E154: х | F154: х | G154: =SUM(G153) -> 10000
B156: 6.2 Расчет (обоснование) расходов на оплату транспортных услуг
A157: № п/п | B157: Наименование расходов | C157: Количество услуг перевозки | E157: Цена услуги перевозки, руб. | F157: Сумма, руб. (гр.3*гр.4)
A160: 1 | B160: 2 | C160: 3 | E160: 4 | F160: 5
F161: =SUM(C161*E161) -> 0
A162: Итого: | C162: =SUM(C161) -> 0 | E162: =SUM(E161) -> 0 | F162: =SUM(F161) -> 0
B164: 6.3 Расчет (обоснование) расходов на оплату коммунальных услуг
A165: № п/п | B165: Наименование показателя | C165: Размер потребления ресурсов | E165: Тариф (с учетом НДС), руб. | F165: Индексация, % | G165: Сумма, руб. (гр.3*гр.4*гр.5)
A168: 1 | B168: 2 | C168: 3 | E168: 4 | F168: 5 | G168: 6
A169: 1 | B169: Ком. услуги | G169: ='Таблица 2.2'!H35+'Таблица 2.2'!H36 -> 254125
A170: 2
A171: 3
A172: Итого: | C172: х | E172: х | F172: х | G172: =G169+G170+G171 -> 254125
B174: 6.4 Расчет (обоснование) расходов на оплату аренды имущества
A175: № п/п | B175: Наименование показателя | C175: Количество | E175: Ставка арендной платы | F175: Стоимость с учетом НДС, руб.
A178: 1 | B178: 2 | C178: 3 | E178: 4 | F178: 5
F179: =SUM(C179*E179) -> 0
A180: Итого: | C180: х | E180: х | F180: х
B182: 6.5 Расчет (обоснование) расходов на оплату работ, услуг по содержанию имущества
A183: № п/п | B183: Наименование расходов | C183: Объект | E183: Количество работ (услуг) | F183: Стоимость работ (услуг), руб.
A186: 1 | B186: 2 | C186: 3 | E186: 4 | F186: 5
A187: 1 | B187: вывоз мусора
A188: 2 | B188: работы, услуги по содержанию имущества | F188: 44402.08
A189: 3 | B189: обслуживание пожарной сигнализации | F189: =16597.92 -> 16597.92
A190: Итого: | C190: х | E190: х | F190: =SUM(F187:G189) -> 61000
B192: 6.6 Расчет (обоснование) расходов на оплату прочих работ, услуг
A193: № п/п | B193: Наименование расходов | C193: Количество договоров | E193: Стоимость услуги, руб.
A196: 1 | B196: 2 | C196: 3 | E196: 4
A197: 1 | B197: Комплекс прикладных научных исследований по объекту
A198: 2 | B198: разработка сметной документации
A199: 3 | B199: предпроверочная подготовка преобразователя расхода электромагнитного счетчика воды
A200: 4 | B200: измерение сопротивления изоляции кабельных линий
A201: 5 | B201: тепловычеслители
A202: 6 | B202: термометры сопротивления
A203: 7 | B203: оплата прочих работ,услуг | E203: ='Таблица 2.2'!H39 -> 13600
A204: Итого: | C204: х | E204: =E197+E198+E199+E200+E201+E202+E203 -> 13600
B206: 6.7 Расчет (обоснование) расходов на приобретение основных средств, материальных запасов
A207: № п/п | B207: Наименование расходов | C207: Количество | E207: Средняя стоимость, руб. | F207: Сумма, руб. (гр.2*гр.3)
A210: 1 | B210: 2 | C210: 3 | E210: 4 | F210: 5
A211: 1 | B211: учебные расходы | F211: ='Таблица 2.2'!H42 -> 21000
A212: 2 | B212: питание | F212: ='Таблица 2.2'!H44+'Таблица 2.2'!H47 -> 74960
A213: 3 | B213: прочие расходы | F213: ='Таблица 2.2'!H43 -> 3500
A214: 4 | B214: медикаменты | F214: ='Таблица 2.2'!H45+'Таблица 2.2'!H48 -> 930
A215: 5 | B215: мягкий инвентарь | F215: ='Таблица 2.2'!H46+'Таблица 2.2'!H49 -> 8200
A216: 6 | B216: приобретение основных средств | F216: ='Таблица 2.2'!H41 -> 5000
A217: 7
A218: 8
A219: Итого: | E219: х | F219: =SUM(F211:G217) -> 113590

Sheet расчеты иные субсидии
C1: Расчеты (обоснования) к плану финансово-хозяйственной деятельности муниципального бюдженого учреждения по состоянию на 01.01.2020г.
D6: 1. Расчеты (обоснования) выплат персоналу (строка 210)
D9: Код вида расходов___111, 112, 119_____________________
C11: Источник финансового обеспечения____Субсидии на иные цели__________________________________
A14: 1.1 Расчеты (обоснования) расходов на оплату труда
A16: № п/п | B16: Должность, группа должностей | C16: Установленная численность, единиц | D16: Среднемесячный размер оплаты труда на одного работника, руб. | H16: Ежемесячная надбавка к должностному окладу, % | I16: Районный коэффициент | J16: 4% и доведение до МРОТ | K16: Фонд оплаты труда в год, руб. (гр.3*гр.4*(1+гр.8/100)+гр.10*гр.9)*12
D17: всего | E17: в том числе:
E18: по должностному окладу | F18: по выплатам компенсационного характера | G18: по выплатам стимулирующего характера
A19: 1 | B19: 2 | C19: 3 | D19: 4 | E19: 5 | F19: 6 | G19: 7 | H19: 8 | I19: 9 | J19: 10 | K19: 11
A20: 4 | B20: обслуживающий персонал | C20: 6.15 | D20: =E20+F20+G20 -> 0 | H20: 0 | I20: 1.15 | J20: 3383.6 | K20: 249709.68
A21: Итого: | C21: =SUM(C20:C20) -> 6.15 | E21: х | F21: х | G21: х | H21: х | I21: х | J21: х | K21: =SUM(K20) -> 249709.68
C24: 1.2 Расчеты (обоснования) выплат персоналу при направлении в служебные командировки
A26: № п/п | B26: Наименование расходов | C26: Средний размер выплаты на одного работника в день, руб. | E26: Количество работников, чел. | F26: Количество дней | G26: Сумма, руб. (гр.3*гр.4*гр.5)
A29: 1 | B29: 2 | C29: 3 | E29: 4 | F29: 5 | G29: 6
G30: =C30*D30*E30 -> 0
A31: Итого: | C31: х | E31: х | F31: х | G31: =SUM(G30) -> 0
C34: 1.3 Расчеты (обоснования) выплат персоналу по уходу за ребенком
A36: № п/п | B36: Наименование расходов | C36: Численность работников, получающих пособие | E36: Количество выплат в год на одного работника | F36: Размер выплаты (пособия) в месяц, руб. | G36: Сумма, руб. (гр.3*гр.4*гр.5)
A39: 1 | B39: 2 | C39: 3 | E39: 4 | F39: 5 | G39: 6
G40: =C40*D40*E40 -> 0
A41: Итого: | C41: х | E41: х | F41: х | G41: =SUM(G40) -> 0
B44: 1.4 Расчеты (обоснования) страховых взносов на обязательное страхование в Пенсионный фонд Российской Федерации, в Фондсоциального страхования Российской Федерации, в Федеральный фонд обязательного медицинского страхования
A46: № п/п | B46: Наименование государственного внебюджетного фонда | E46: Размер базы для начисления страховых взносов, руб. | G46: Сумма взноса, руб.
A49: 1 | B49: 2 | E49: 3 | G49: 4
A50: 1 | B50: Страховые взносы в Пенсионный фонд Российской Федерации, всего | E50: х | G50: =G52 -> 54936.13
A52: 1.1 | B52: в том числе: | G52: 54936.13
B54: по ставке 22,0%
A56: 1.2 | B56: по ставке 10,0% | G56: 0
A58: 1.3 | B58: с применением пониженных тарифов взносов в Пенсионный фонд Российской Федерации для отдельных категорий плательщиков | G58: 0
A60: 2 | B60: Страховые взносы в Фонд социального страхования Российской Федерации, всего | E60: х | G60: =G62+G70+G74 -> 20476.19
A62: 2.1 | B62: в том числе: | G62: 7241.58
B64: обязательное социальное страхование на случай временной нерудоспособности и в связи с материнством по ставке 2,9%
A66: 2.2 | B66: с применением ставки взносов в Фонд социального страхования Российской федерации по ставке 0,0% | E66: х | G66: 0
A68: 1 | B68: 2 | E68: 3 | G68: 4
A70: 2.4 | B70: обязательное социальное страхование от несчастных случаев на производстве и профессиональных заболваний по ставке 0,2%* | G70: 499.42
A72: 2.5 | B72: обязательное социальное страхование от несчастных случаев на производстве и профессиональных заболваний по ставке 0,__%*
A74: 3 | B74: Страховые взносы в Федеральный фонд обязательного медицинского страхования, всего (по ставке 5,1%) | G74: 12735.19
B76: Итого: | E76: х | G76: =G60+G50 -> 75412.32
B80: 2. Расчеты (обоснования) расходов на социальные и иные выплаты населению
A82: Код вида доходов______________________________________________
B83: Источник финансового обеспечения___________________________________
A85: № п/п | B85: Наименование расходов | C85: Размер одной выплаты, руб. | E85: Количество выплат в год | F85: Сумма, руб. (гр.3*гр.4)
A88: 1 | B88: 2 | C88: 3 | E88: 4 | F88: 5
F89: =C89*E89 -> 0
A90: Итого: | C90: х | E90: х | F90: =SUM(F89) -> 0
A93: __________________________________
A94: * Указываются страховые тарифы, дифференцированные по классам профессионального риска, установленные Федеральным законом от 22 декабря 2005 г. № 179-ФЗ "О страховых тарифах на обязательное социальное страхование от несчастных случаев на производстве и прфессиональных заболеваний на 2006 год".
B100: 3. Расчеты (обоснования) расходов на уплату налогов, сборов и иных платежей
A102: Код вида доходов 851,852______________________________________________
B103: Источник финансового обеспечения___________________________________
A105: № п/п | B105: Наименование расходов | C105: Налоговая база, руб. | E105: Ставка налога, % | F105: Сумма исчисленного налога, подлежащего уплате, руб. (гр.3*гр.4/100)
A108: 1 | B108: 2 | C108: 3 | E108: 4 | F108: 5
A109: 1 | B109: налог на имущество | F109: ='Таблица 2.2'!D102 -> 0
A110: Итого: | E110: х | F110: =SUM(F109) -> 0
A113: 4. Расчеты (обоснования) расходов на безвозмездные перечисления организациям
A115: Код вида доходов ______________________________________________
B116: Источник финансового обеспечения___________________________________
A118: № п/п | B118: Наименование показателя | C118: Размер одной выплаты, руб. | E118: Количество выплат в год | F118: Общая сумма выплат, руб. (гр.3*гр.4)
A121: 1 | B121: 2 | C121: 3 | E121: 4 | F121: 5
F122: =C122*E122 -> 0
A123: Итого: | C123: х | E123: х | F123: =SUM(F122) -> 0
A126: 5. Расчет (обоснование) прочих расхоов (кроме расходов на закупку товаров, работ, услуг)
A128: Код вида доходов ___853___________________________________________
B129: Источник финансового обеспечения___________________________________
A131: № п/п | B131: Наименование показателя | C131: Размер одной выплаты, руб. | E131: Количество выплат в год | F131: Общая сумма выплат, руб. (гр.3*гр.4)
A134: 1 | B134: 2 | C134: 3 | E134: 4 | F134: 5
F135: ='Таблица 2.2'!D103 -> 0
A136: Итого: | C136: х | E136: х | F136: =SUM(F135) -> 0
A139: 6. Расчет (обоснование) расходов на закупку товаров, работ, услуг
A141: Код вида доходов ___244___________________________________________
B142: Источник финансового обеспечения___________________________________
B144: 6.1 Расчет (обоснование) расходов на оплату услуг связи
A145: № п/п | B145: Наименование расходов | C145: Количество номеров | E145: Количество платежей в год | F145: Стоимость за единицу, руб. | G145: Сумма, руб. (гр.3*гр.4*гр.5)
A148: 1 | B148: 2 | C148: 3 | E148: 4 | F148: 5 | G148: 6
A149: 1 | B149: связь | G149: ='Таблица 2.2'!D109 -> 0
A150: Итого: | C150: х | E150: х | F150: х | G150: =SUM(G149) -> 0
B152: 6.2 Расчет (обоснование) расходов на оплату транспортных услуг
A153: № п/п | B153: Наименование расходов | C153: Количество услуг перевозки | E153: Цена услуги перевозки, руб. | F153: Сумма, руб. (гр.3*гр.4)
A156: 1 | B156: 2 | C156: 3 | E156: 4 | F156: 5
F157: =SUM(C157*E157) -> 0
A158: Итого: | C158: =SUM(C157) -> 0 | E158: =SUM(E157) -> 0 | F158: =SUM(F157) -> 0
B160: 6.3 Расчет (обоснование) расходов на оплату коммунальных услуг
A161: № п/п | B161: Наименование показателя | C161: Размер потребления ресурсов | E161: Тариф (с учетом НДС), руб. | F161: Индексация, % | G161: Сумма, руб. (гр.3*гр.4*гр.5)
A164: 1 | B164: 2 | C164: 3 | E164: 4 | F164: 5 | G164: 6
A165: 1 | B165: тепло | G165: ='Таблица 2.2'!D110 -> 0
A166: Итого: | C166: х | E166: х | F166: х | G166: =SUM(G165) -> 0
B168: 6.4 Расчет (обоснование) расходов на оплату аренды имущества
A169: № п/п | B169: Наименование показателя | C169: Количество | E169: Ставка арендной платы | F169: Стоимость с учетом НДС, руб.
A172: 1 | B172: 2 | C172: 3 | E172: 4 | F172: 5
F173: =SUM(C173*E173) -> 0
A174: Итого: | C174: х | E174: х | F174: х
B176: 6.5 Расчет (обоснование) расходов на оплату работ, услуг по содержанию имщества
A177: № п/п | B177: Наименование расходов | C177: Объект | E177: Количество работ (услуг) | F177: Стоимость работ (услуг), руб.
A180: 1 | B180: 2 | C180: 3 | E180: 4 | F180: 5
B181: работы, услуги по содержанию имущества | F181: ='Таблица 2.2'!D104 -> 0
A182: Итого: | C182: х | E182: х | F182: =SUM(F181) -> 0
B184: 6.6 Расчет (обоснование) расходов на оплату прочих работ, услуг
A185: № п/п | B185: Наименование расходов | C185: Количество договоров | E185: Стоимость услуги, руб.
A188: 1 | B188: 2 | C188: 3 | E188: 4
A189: 1 | B189: Оплата за выполненные мероприятия, направленные на энергосбережение и повышение энергетической эффективности использования энергетических ресурсов системы теплоснабжения МБДОУ детский сад "Улыбка" с. Александров-Гай | E189: ='Таблица 2.2'!H119 -> 1650000
A190: Итого: | C190: х | E190: =SUM(E189) -> 1650000
B192: 6.7 Расчет (обоснование) расходов на приобретение основных средств, материальных запасов
A193: № п/п | B193: Наименование расходов | C193: Количество | E193: Средняя стоимость, руб. | F193: Сумма, руб. (гр.2*гр.3)
A196: 1 | B196: 2 | C196: 3 | E196: 4 | F196: 5
A197: 1 | B197: питание | F197: ='Таблица 2.2'!D115 -> 0
A198: 2 | B198: приобретение бойлера
A199: Итого: | E199: х | F199: =F197+F198 -> 0

Sheet расчеты предпринималка
C1: Расчеты (обоснования) к плану финансово-хозяйственной деятельности муниципального бюдженого учреждения по состоянию на 01.01.2020г.
D6: 1. Расчеты (обоснования) выплат персоналу (строка 210)
D9: Код вида расходов____111, 112, 119____________________
C11: Источник финансового обеспечения____Поступления от иной приносящей доход деятельности__________________________________
A14: 1.1 Расчеты (обоснования) расходов на оплату труда
A16: № п/п | B16: Должность, группа должностей | C16: Установленная численность, единиц | D16: Среднемесячный размер оплаты труда на одного работника, руб. | H16: Ежемесячная надбавка к должностному окладу, % | I16: Районный коэффициент | J16: Фонд оплаты труда в год, руб. (гр.3*гр.4*(1+гр.8/100)*гр.9*12)
D17: всего | E17: в том числе:
E18: по должностному окладу | F18: по выплатам компенсационного характера | G18: по выплатам стимулирующего характера
A19: 1 | B19: 2 | C19: 3 | D19: 4 | E19: 5 | F19: 6 | G19: 7 | H19: 8 | I19: 9 | J19: 10
D20: 0 | E20: 0 | F20: 0 | G20: 0 | H20: 0 | I20: 0 | J20: =C20*D20*(1+H20/100)*I20*12 -> 0
A21: Итого: | C21: х | E21: х | F21: х | G21: х | H21: х | I21: х | J21: =SUM(J20) -> 0
C24: 1.2 Расчеты (обоснования) выплат персоналу при направлении в служебные командировки
A26: № п/п | B26: Наименование расходов | C26: Средний размер выплаты на одного работника в день, руб. | E26: Количество работников, чел. | F26: Количество дней | G26: Сумма, руб. (гр.3*гр.4*гр.5)
A29: 1 | B29: 2 | C29: 3 | E29: 4 | F29: 5 | G29: 6
G30: =C30*D30*E30 -> 0
A31: Итого: | C31: х | E31: х | F31: х | G31: =SUM(G30) -> 0
C34: 1.3 Расчеты (обоснования) выплат персоналу по уходу за ребенком
A36: № п/п | B36: Наименование расходов | C36: Численность работников, получающих пособие | E36: Количество выплат в год на одного работника | F36: Размер выплаты (пособия) в месяц, руб. | G36: Сумма, руб. (гр.3*гр.4*гр.5)
A39: 1 | B39: 2 | C39: 3 | E39: 4 | F39: 5 | G39: 6
G40: =C40*D40*E40 -> 0
A41: Итого: | C41: х | E41: х | F41: х | G41: =SUM(G40) -> 0
B44: 1.4 Расчеты (обоснования) страховых взносов на обязательное страхование в Пенсионный фонд Российской Федерации, в Фондсоциального страхования Российской Федерации, в Федеральный фонд обязательного медицинского страхования
A46: № п/п | B46: Наименование государственного внебюджетного фонда | E46: Размер базы для начисления страховых взносов, руб. | G46: Сумма взноса, руб.
A49: 1 | B49: 2 | E49: 3 | G49: 4
A50: 1 | B50: Страховые взносы в Пенсионный фонд Российской Федерации, всего | E50: х
A52: 1.1 | B52: в том числе:
B54: по ставке 22,0%
A56: 1.2 | B56: по ставке 10,0% | G56: 0
A58: 1.3 | B58: с применением пониженных тарифов взносов в Пенсионный фонд Российской Федерации для отдельных категорий плательщиков | G58: 0
A60: 2 | B60: Страховые взносы в Фонд социального страхования Российской Федерации, всего | E60: х | G60: 0
A62: 2.1 | B62: в том числе:
B64: обязательное социальное страхование на случай временной нерудоспособности и в связи с материнством по ставке 2,9%
A66: 2.2 | B66: с применением ставки взносов в Фонд социального страхования Российской федерации по ставке 0,0% | E66: х | G66: 0
A68: 1 | B68: 2 | E68: 3 | G68: 4
A70: 2.4 | B70: обязательное социальное страхование от несчастных случаев на производстве и профессиональных заболваний по ставке 0,2%*
A72: 2.5 | B72: обязательное социальное страхование от несчастных случаев на производстве и профессиональных заболваний по ставке 0,__%*
A74: 3 | B74: Страховые взносы в Федеральный фонд обязательного медицинского страхования, всего (по ставке 5,1%)
B76: Итого: | E76: х
B80: 2. Расчеты (обоснования) расходов на социальные и иные выплаты населению
A82: Код вида доходов______________________________________________
B83: Источник финансового обеспечения___________________________________
A85: № п/п | B85: Наименование расходов | C85: Размер одной выплаты, руб. | E85: Количество выплат в год | F85: Сумма, руб. (гр.3*гр.4)
A88: 1 | B88: 2 | C88: 3 | E88: 4 | F88: 5
F89: =C89*E89 -> 0
A90: Итого: | C90: х | E90: х | F90: =SUM(F89) -> 0
A93: __________________________________
A94: * Указываются страховые тарифы, дифференцированные по классам профессионального риска, установленные Федеральным законом от 22 декабря 2005 г. № 179-ФЗ "О страховых тарифах на обязательное социальное страхование от несчастных случаев на производстве и прфессиональных заболеваний на 2006 год".
B100: 3. Расчеты (обоснования) расходов на уплату налогов, сборов и иных платежей
A102: Код вида доходов 851,852______________________________________________
B103: Источник финансового обеспечения___________________________________
A105: № п/п | B105: Наименование расходов | C105: Налоговая база, руб. | E105: Ставка налога, % | F105: Сумма исчисленного налога, подлежащего уплате, руб. (гр.3*гр.4/100)
A108: 1 | B108: 2 | C108: 3 | E108: 4 | F108: 5
F109: =C109*E109 -> 0
A110: Итого: | E110: х | F110: =SUM(F109) -> 0
A113: 4. Расчеты (обоснования) расходов на безвозмездные перечисления организациям
A115: Код вида доходов ______________________________________________
B116: Источник финансового обеспечения___________________________________
A118: № п/п | B118: Наименование показателя | C118: Размер одной выплаты, руб. | E118: Количество выплат в год | F118: Общая сумма выплат, руб. (гр.3*гр.4)
A121: 1 | B121: 2 | C121: 3 | E121: 4 | F121: 5
F122: =C122*E122 -> 0
A123: Итого: | C123: х | E123: х | F123: =SUM(F122) -> 0
A126: 5. Расчет (обоснование) прочих расхоов (кроме расходов на закупку товаров, работ, услуг)
A128: Код вида доходов ___853___________________________________________
B129: Источник финансового обеспечения___________________________________
A131: № п/п | B131: Наименование показателя | C131: Размер одной выплаты, руб. | E131: Количество выплат в год | F131: Общая сумма выплат, руб. (гр.3*гр.4)
A134: 1 | B134: 2 | C134: 3 | E134: 4 | F134: 5
F135: =C135*E135 -> 0
A136: Итого: | C136: х | E136: х | F136: =SUM(F135) -> 0
A139: 6. Расчет (обоснование) расходов на закупку товаров, работ, услуг
A141: Код вида доходов ___244___________________________________________
B142: Источник финансового обеспечения___________________________________
B144: 6.1 Расчет (обоснование) расходов на оплату услуг связи
A145: № п/п | B145: Наименование расходов | C145: Количество номеров | E145: Количество платежей в год | F145: Стоимость за единицу, руб. | G145: Сумма, руб. (гр.3*гр.4*гр.5)
A148: 1 | B148: 2 | C148: 3 | E148: 4 | F148: 5 | G148: 6
G149: =C149*E149*F149 -> 0
A150: Итого: | C150: х | E150: х | F150: х | G150: =SUM(G149) -> 0
B152: 6.2 Расчет (обоснование) расходов на оплату транспортных услуг
A153: № п/п | B153: Наименование расходов | C153: Количество услуг перевозки | E153: Цена услуги перевозки, руб. | F153: Сумма, руб. (гр.3*гр.4)
A156: 1 | B156: 2 | C156: 3 | E156: 4 | F156: 5
F157: =SUM(C157*E157) -> 0
A158: Итого: | C158: =SUM(C157) -> 0 | E158: =SUM(E157) -> 0 | F158: =SUM(F157) -> 0
B160: 6.3 Расчет (обоснование) расходов на оплату коммунальных услуг
A161: № п/п | B161: Наименование показателя | C161: Размер потребления ресурсов | E161: Тариф (с учетом НДС), руб. | F161: Индексация, % | G161: Сумма, руб. (гр.3*гр.4*гр.5)
A164: 1 | B164: 2 | C164: 3 | E164: 4 | F164: 5 | G164: 6
G165: =C165*E165*F165 -> 0
A166: Итого: | C166: х | E166: х | F166: х | G166: =SUM(G165) -> 0
B168: 6.4 Расчет (обоснование) расходов на оплату аренды имущества
A169: № п/п | B169: Наименование показателя | C169: Количество | E169: Ставка арендной платы | F169: Стоимость с учетом НДС, руб.
A172: 1 | B172: 2 | C172: 3 | E172: 4 | F172: 5
F173: =SUM(C173*E173) -> 0
A174: Итого: | C174: х | E174: х | F174: х
B176: 6.5 Расчет (обоснование) расходов на оплату работ, услуг по содержанию имщества
A177: № п/п | B177: Наименование расходов | C177: Объект | E177: Количество работ (услуг) | F177: Стоимость работ (услуг), руб.
A180: 1 | B180: 2 | C180: 3 | E180: 4 | F180: 5
F181: =SUM(C181*E181) -> 0
A182: Итого: | C182: х | E182: х
B184: 6.6 Расчет (обоснование) расходов на оплату прочих работ, услуг
A185: № п/п | B185: Наименование расходов | C185: Количество договоров | E185: Стоимость услуги, руб.
A188: 1 | B188: 2 | C188: 3 | E188: 4
A190: Итого: | C190: х
B192: 6.7 Расчет (обоснование) расходов на приобретение основных средств, материальных запасов
A193: № п/п | B193: Наименование расходов | C193: Количество | E193: Средняя стоимость, руб. | F193: Сумма, руб. (гр.2*гр.3)
A196: 1 | B196: 2 | C196: 3 | E196: 4 | F196: 5
A197: 1 | B197: медикаменты | F197: ='Таблица 2.2'!H79 -> 0
A198: 2 | B198: питание | F198: ='Таблица 2.2'!H80 -> 327925
A199: 3 | B199: строй.материалы | F199: ='Таблица 2.2'!H81 -> 0
A200: 4 | B200: прочие расходы | F200: ='Таблица 2.2'!H82 -> 0
A201: Итого: | E201: х | F201: =SUM(F197:G200) -> 327925
